fUSD/lending_fUSD_20240612
["ID","MTS","AMOUNT","RATE_DAILY","PERIOD"]
[329218093,1718185870496,-500.0,0.00019863,2]
[329218094,1718185870507,-500.0,0.00019863,2]
[329218095,1718185870518,-500.0,0.00019863,2]
[329218096,1718185870530,-500.0,0.00019863,2]
[329218097,1718185870541,-831.92,0.00019863,2]
[329218098,1718185870553,-500.0,0.00019863,2]
[329218099,1718185870564,-500.0,0.00019863,2]
[329218100,1718185870575,-590.58488845,0.00019863,2]
[329218101,1718185870586,-500.0,0.00019863,2]
[329218102,1718185870597,-500.0,0.00019863,2]
[329218103,1718185870608,-500.0,0.00019863,2]
[329218104,1718185870619,-500.0,0.00019863,2]
[329218105,1718185870630,-500.0,0.00019863,2]
[329218106,1718185870641,-500.0,0.00019863,2]
[329218107,1718185870652,-596.38,0.00019863,2]
[329218108,1718185870664,-500.0,0.00019863,2]
[329218109,1718185870675,-500.0,0.00019863,2]
[329218110,1718185870687,-500.0,0.00019863,2]
[329218111,1718185870698,-500.0,0.00019863,2]
[329218112,1718185870708,-500.0,0.00019863,2]
[329218113,1718185870719,-500.0,0.00019863,2]
[329218114,1718185870730,-150.0,0.00019863,2]
[329218115,1718185870741,-500.0,0.00019863,2]
[329218116,1718185870752,-636.69,0.00019863,2]
[329218117,1718185870764,-500.0,0.00019863,2]
[329218118,1718185870774,-500.0,0.00019863,2]
[329218119,1718185870786,-550.81,0.00019863,2]
[329218120,1718185870798,-500.0,0.00019863,2]
[329218121,1718185870810,-544.83,0.00019863,2]
[329218122,1718185870827,-500.0,0.00019863,2]
[329218123,1718185870840,-500.0,0.00019863,2]
[329218124,1718185870852,-500.0,0.00019863,2]
[329218125,1718185870863,-500.0,0.00019863,2]
[329218126,1718185870875,-500.0,0.00019863,2]
[329218127,1718185870886,-500.0,0.00019863,2]
[329218128,1718185870898,-500.0,0.00019863,2]
[329218129,1718185870912,-642.59,0.00019863,2]
[329218130,1718185870924,-500.0,0.00019863,2]
[329218131,1718185870936,-528.18,0.00019863,2]
[329218132,1718185870949,-500.0,0.00019863,2]
[329218133,1718185870961,-500.0,0.00019863,2]
[329218134,1718185870974,-287.03843439,0.00019863,2]
[329218135,1718185870990,-500.0,0.00019863,2]
[329218136,1718185871002,-598.33043373,0.00019863,2]
[329218137,1718185871015,-500.0,0.00019863,2]
[329218138,1718185871029,-500.0,0.00019863,2]
[329218139,1718185871041,-500.0,0.00019863,2]
[329218140,1718185871053,-500.0,0.00019863,2]
[329218141,1718185871067,-500.0,0.00019863,2]
[329218142,1718185871080,-500.0,0.00019863,2]
[329218143,1718185871109,-500.0,0.00019863,2]
[329218144,1718185871123,-500.0,0.00019863,2]
[329218145,1718185871135,-500.0,0.00019863,2]
[329218146,1718185871147,-500.0,0.00019863,2]
[329218147,1718185871161,-537.67579827,0.00019863,2]
[329218148,1718185871173,-207.01908855,0.00019863,2]
[329218149,1718185871184,-500.0,0.00019863,2]
[329218150,1718185871196,-500.0,0.00019863,2]
[329218151,1718185871208,-500.0,0.00019863,2]
[329218152,1718185871220,-500.0,0.00019863,2]
[329218153,1718185871232,-500.0,0.00019863,2]
[329218154,1718185871244,-500.0,0.00019863,2]
[329218155,1718185871255,-500.0,0.00019863,2]
[329218156,1718185871268,-500.0,0.00019863,2]
[329218157,1718185871280,-500.0,0.00019863,2]
[329218158,1718185871292,-500.0,0.00019863,2]
[329218159,1718185871304,-500.0,0.00019863,2]
[329218160,1718185871316,-500.0,0.00019863,2]
[329218161,1718185871328,-500.0,0.00019863,2]
[329218162,1718185871339,-549.88,0.00019863,2]
[329218163,1718185871352,-500.0,0.00019863,2]
[329218164,1718185871364,-500.0,0.00019863,2]
[329218165,1718185871375,-500.0,0.00019863,2]
[329218166,1718185871387,-500.0,0.00019863,2]
[329218167,1718185871399,-500.0,0.00019863,2]
[329218168,1718185871412,-500.0,0.00019863,2]
[329218169,1718185871424,-500.0,0.00019863,2]
[329218170,1718185871436,-500.0,0.00019863,2]
[329218171,1718185871448,-500.0,0.00019863,2]
[329218172,1718185871461,-500.0,0.00019863,2]
[329218173,1718185871473,-500.0,0.00019863,2]
[329218174,1718185871484,-500.0,0.00019863,2]
[329218175,1718185871498,-500.0,0.00019863,2]
[329218176,1718185871510,-616.7,0.00019863,2]
[329218177,1718185871521,-500.0,0.00019863,2]
[329218178,1718185871533,-769.59,0.00019863,2]
[329218179,1718185871546,-500.0,0.00019863,2]
[329218180,1718185871561,-500.0,0.00019863,2]
[329218181,1718185871574,-563.56,0.00019863,2]
[329218182,1718185871586,-500.0,0.00019863,2]
[329218183,1718185871599,-657.51,0.00019863,2]
[329218184,1718185871611,-1663.16,0.00019863,2]
[329218185,1718185871623,-500.0,0.00019863,2]
[329218186,1718185871635,-500.0,0.00019863,2]
[329218187,1718185871646,-4313.61,0.00019863,2]
[329218189,1718185871661,-844.37,0.00019863,2]
[329218190,1718185871672,-500.0,0.00019863,2]
[329218191,1718185871684,-1497.28,0.00019863,2]
[329218192,1718185871697,-532.58,0.00019863,2]
[329218193,1718185871709,-550.43,0.00019863,2]
[329218194,1718185871721,-500.0,0.00019863,2]
[329218195,1718185871735,-793.78,0.00019863,2]
[329218196,1718185871748,-500.0,0.00019863,2]
[329218197,1718185871761,-500.0,0.00019863,2]
[329218198,1718185871774,-552.52,0.00019863,2]
[329218199,1718185871787,-4109.6,0.00019863,2]
[329218200,1718185871800,-500.0,0.00019863,2]
[329218201,1718185871813,-1055.47,0.00019863,2]
[329218202,1718185871825,-897.13,0.00019863,2]
[329218203,1718185871839,-543.28,0.00019863,2]
[329218204,1718185871851,-1296.61,0.00019863,2]
[329218205,1718185871863,-500.0,0.00019863,2]
[329218206,1718185871875,-500.0,0.00019863,2]
[329218207,1718185871887,-809.93,0.00019863,2]
[329218208,1718185871899,-768.11,0.00019863,2]
[329218209,1718185871912,-6405.02,0.00019863,2]
[329218210,1718185871924,-2036.48,0.00019863,2]
[329218211,1718185871937,-500.0,0.00019863,2]
[329218212,1718185871949,-2920.36,0.00019863,2]
[329218213,1718185871961,-500.0,0.00019863,2]
[329218214,1718185871973,-500.0,0.00019863,2]
[329218215,1718185871986,-2762.9,0.00019863,2]
[329218216,1718185871999,-500.0,0.00019863,2]
[329218217,1718185872010,-708.79,0.00019863,2]
[329218218,1718185872022,-500.0,0.00019863,2]
[329218219,1718185872034,-500.0,0.00019863,2]
[329218220,1718185872046,-1021.06,0.00019863,2]
[329218221,1718185872058,-500.0,0.00019863,2]
[329218222,1718185872071,-500.0,0.00019863,2]
[329218223,1718185872083,-500.0,0.00019863,2]
[329218224,1718185872101,-500.0,0.00019863,2]
[329218225,1718185872120,-500.0,0.00019863,2]
[329218226,1718185872132,-1191.19,0.00019863,2]
[329218227,1718185872144,-500.0,0.00019863,2]
[329218228,1718185872161,-500.0,0.00019863,2]
[329218229,1718185872174,-500.0,0.00019863,2]
[329218230,1718185872186,-500.0,0.00019863,2]
[329218231,1718185872199,-500.0,0.00019863,2]
[329218232,1718185872210,-500.0,0.00019863,2]
[329218233,1718185872222,-2756.75,0.00019863,2]
[329218234,1718185872233,-761.22,0.00019863,2]
[329218235,1718185872244,-743.07,0.00019863,2]
[329218236,1718185872255,-683.7,0.00019863,2]
[329218237,1718185872266,-515.05,0.00019863,2]
[329218238,1718185872276,-1876.75,0.00019863,2]
[329218239,1718185872288,-1604.18,0.00019863,2]
[329218240,1718185872300,-790.24,0.00019863,2]
[329218241,1718185872313,-500.0,0.00019863,2]
[329218242,1718185872324,-998.7,0.00019863,2]
[329218243,1718185872336,-500.0,0.00019863,2]
[329218244,1718185872348,-500.0,0.00019863,2]
[329218245,1718185872359,-602.1219487,0.00019863,2]
[329218246,1718185872371,-500.0,0.00019863,2]
[329218247,1718185872384,-490.66132722,0.00019863,2]
[329218248,1718185872396,-975.94,0.00019863,2]
[329218249,1718185872412,-500.0,0.00019863,2]
[329218250,1718185872423,-500.0,0.00019863,2]
[329218251,1718185872434,-798.24,0.00019863,2]
[329218252,1718185872445,-251.77566173,0.00019863,2]
[329218253,1718185872456,-611.52,0.00019863,2]
[329218254,1718185872467,-833.49,0.00019863,2]
[329218255,1718185872479,-875.83,0.00019863,2]
[329218256,1718185872491,-500.0,0.00019863,2]
[329218257,1718185872504,-500.0,0.00019863,2]
[329218258,1718185872518,-500.0,0.00019863,2]
[329218259,1718185872530,-1061.9,0.00019863,2]
[329218260,1718185872541,-638.1,0.00019863,2]
[329218261,1718185872554,-609.2,0.00019863,2]
[329218262,1718185872566,-500.0,0.00019863,2]
[329218263,1718185872578,-500.0,0.00019863,2]
[329218264,1718185872590,-500.0,0.00019863,2]
[329218265,1718185872602,-500.0,0.00019863,2]
[329218266,1718185872614,-617.77,0.00019863,2]
[329218267,1718185872632,-541.15545103,0.00019863,2]
[329218268,1718185872648,-566.19,0.00019863,2]
[329218269,1718185872665,-500.0,0.00019863,2]
[329218270,1718185872677,-500.0,0.00019863,2]
[329218271,1718185872691,-2086.81,0.00019863,2]
[329218272,1718185872704,-587.52,0.00019863,2]
[329218273,1718185872716,-2541.52,0.00019863,2]
[329218274,1718185872729,-840.54,0.00019863,2]
[329218275,1718185872741,-500.0,0.00019863,2]
[329218276,1718185872754,-500.0,0.00019863,2]
[329218277,1718185872766,-861.93,0.00019863,2]
[329218278,1718185872779,-500.0,0.00019863,2]
[329218279,1718185872791,-500.0,0.00019863,2]
[329218280,1718185872805,-653.36,0.00019863,2]
[329218281,1718185872818,-572.73281472,0.00019863,2]
[329218282,1718185872831,-1513.9,0.00019863,2]
[329218283,1718185872843,-1430.79,0.00019863,2]
[329218284,1718185872856,-500.0,0.00019863,2]
[329218285,1718185872868,-500.0,0.00019863,2]
[329218286,1718185872881,-1116.87,0.00019863,2]
[329218287,1718185872895,-1680.63,0.00019863,2]
[329218288,1718185872910,-2401.2,0.00019863,2]
[329218289,1718185872925,-500.0,0.00019863,2]
[329218290,1718185872940,-500.0,0.00019863,2]
[329218291,1718185872952,-500.0,0.00019863,2]
[329218292,1718185872965,-562.19,0.00019863,2]
[329218293,1718185872980,-1223.41,0.00019863,2]
[329218294,1718185872996,-982.45,0.00019863,2]
[329218295,1718185873009,-1057.64,0.00019863,2]
[329218296,1718185873023,-500.0,0.00019863,2]
[329218297,1718185873036,-807.87,0.00019863,2]
[329218298,1718185873049,-500.0,0.00019863,2]
[329218299,1718185873063,-619.18513467,0.00019863,2]
[329218300,1718185873075,-1266.87,0.00019863,2]
[329218301,1718185873088,-714.41,0.00019863,2]
[329218302,1718185873115,-500.0,0.00019863,2]
[329218303,1718185873128,-1245.17,0.00019863,2]
[329218304,1718185873141,-624.57,0.00019863,2]
[329218305,1718185873157,-500.0,0.00019863,2]
[329218306,1718185873174,-500.0,0.00019863,2]
[329218307,1718185873185,-1411.92,0.00019863,2]
[329218308,1718185873198,-1034.01,0.00019863,2]
[329218309,1718185873210,-507.19,0.00019863,2]
[329218310,1718185873223,-769.32,0.00019863,2]
[329218311,1718185873234,-632.86,0.00019863,2]
[329218312,1718185873246,-1980.14,0.00019863,2]
[329218313,1718185873258,-855.8,0.00019863,2]
[329218314,1718185873270,-2845.79,0.00019863,2]
[329218315,1718185873283,-500.0,0.00019863,2]
[329218316,1718185873295,-658.23,0.00019863,2]
[329218317,1718185873308,-500.0,0.00019863,2]
[329218318,1718185873590,-500.0,0.00019863,2]
[329218319,1718185873612,-500.0,0.00019863,2]
[329218320,1718185873624,-500.0,0.00019863,2]
[329218321,1718185873636,-856.59,0.00019863,2]
[329218322,1718185873648,-906.07,0.00019863,2]
[329218323,1718185873662,-736.59,0.00019863,2]
[329218324,1718185873674,-771.76,0.00019863,2]
[329218325,1718185873685,-1448.82,0.00019863,2]
[329218326,1718185873696,-654.87,0.00019863,2]
[329218327,1718185873708,-500.0,0.00019863,2]
[329218328,1718185873721,-500.0,0.00019863,2]
[329218329,1718185873732,-1124.45,0.00019863,2]
[329218330,1718185873744,-543.6,0.00019863,2]
[329218331,1718185873756,-500.0,0.00019863,2]
[329218332,1718185873768,-3297.81,0.00019863,2]
[329218333,1718185873780,-513.64,0.00019863,2]
[329218334,1718185873792,-2891.44,0.00019863,2]
[329218335,1718185873804,-500.0,0.00019863,2]
[329218336,1718185873816,-769.71,0.00019863,2]
[329218337,1718185873828,-733.82,0.00019863,2]
[329218338,1718185873840,-2443.76,0.00019863,2]
[329218339,1718185873851,-500.0,0.00019863,2]
[329218340,1718185873864,-500.0,0.00019863,2]
[329218341,1718185873876,-2001.79,0.00019863,2]
[329218342,1718185873888,-2858.77,0.00019863,2]
[329218343,1718185873900,-500.0,0.00019863,2]
[329218344,1718185873914,-558.22437684,0.00019863,2]
[329218345,1718185873925,-863.57,0.00019863,2]
[329218346,1718185873937,-5348.23,0.00019863,2]
[329218347,1718185873949,-500.0,0.00019863,2]
[329218348,1718185873960,-500.0,0.00019863,2]
[329218349,1718185873972,-500.0,0.00019863,2]
[329218350,1718185873985,-885.96,0.00019863,2]
[329218351,1718185873999,-500.0,0.00019863,2]
[329218352,1718185874012,-500.0,0.00019863,2]
[329218353,1718185874025,-597.64,0.00019863,2]
[329218354,1718185874039,-500.0,0.00019863,2]
[329218355,1718185874051,-1934.79,0.00019863,2]
[329218356,1718185874064,-500.0,0.00019863,2]
[329218357,1718185874077,-1159.83,0.00019863,2]
[329218358,1718185874108,-500.0,0.00019863,2]
[329218359,1718185874121,-500.0,0.00019863,2]
[329218360,1718185874133,-500.0,0.00019863,2]
[329218361,1718185874144,-994.91,0.00019863,2]
[329218362,1718185874157,-670.09,0.00019863,2]
[329218363,1718185874168,-500.0,0.00019863,2]
[329218364,1718185874183,-1535.0,0.00019863,2]
[329218365,1718185874195,-3739.837,0.00019873,2]
[329218366,1718185874206,-400.0,0.000199,7]
[329218367,1718185874217,-200.0,0.00019974,2]
[329218368,1718185874229,-1270.18852319,0.0002,2]
[329218369,1718185874240,-1781.32992675,0.0002,2]
[329218370,1718185874252,-6266.12845642,0.0002,2]
[329218371,1718185874262,-447.10359689,0.0002,2]
[329218372,1718185874273,-169.75316731,0.0002,2]
[329218373,1718185874284,-1012.07770229,0.0002,2]
[329218374,1718185874295,-865.36098931,0.0002,2]
[329218375,1718185874307,-156.91778106,0.0002,2]
[329218376,1718185874319,-155.0,0.0002,2]
[329218377,1718185874331,-549.50595062,0.0002,2]
[329218378,1718185874345,-13615.0,0.0002,2]
[329218379,1718185874357,-500.0,0.0002,2]
[329218380,1718185874369,-500.0,0.0002,2]
[329218381,1718185874380,-500.0,0.0002,2]
[329218382,1718185874390,-529.04,0.0002,2]
[329218383,1718185874403,-500.0,0.0002,2]
[329218384,1718185874414,-802.03,0.0002,2]
[329218385,1718185874426,-639.98255788,0.0002,2]
[329218386,1718185874440,-500.0,0.0002,2]
[329218387,1718185874452,-1416.86907785,0.0002,2]
[329218388,1718185874463,-500.0,0.0002,2]
[329218389,1718185874475,-500.0,0.0002,2]
[329218390,1718185874486,-500.0,0.0002,2]
[329218391,1718185874497,-1640.81683342,0.0002,4]
[329218392,1718185874510,-155.0,0.0002,4]
[329218393,1718185874521,-500.0,0.0002,2]
[329218394,1718185874531,-527.94898334,0.0002,2]
[329218395,1718185874544,-500.0,0.0002,2]
[329218396,1718185874555,-500.0,0.0002,2]
[329218397,1718185874567,-865.21,0.0002,2]
[329218398,1718185874578,-450.85,0.0002,2]
[329218399,1718185874591,-500.0,0.0002,2]
[329218400,1718185874604,-380.00308651,0.0002,2]
[329218401,1718185874614,-500.0,0.0002,2]
[329218402,1718185874627,-616.47,0.0002,2]
[329218403,1718185874640,-500.0,0.0002,2]
[329218404,1718185874651,-500.0,0.0002,2]
[329218405,1718185874668,-500.0,0.0002,2]
[329218406,1718185874679,-500.0,0.0002,2]
[329218407,1718185874694,-500.0,0.0002,2]
[329218408,1718185874706,-528.77054613,0.0002,2]
[329218409,1718185874718,-500.0,0.0002,2]
[329218410,1718185874729,-500.0,0.0002,2]
[329218411,1718185874746,-827.08,0.0002,2]
[329218412,1718185874757,-641.91,0.0002,2]
[329218413,1718185874769,-500.0,0.0002,2]
[329218414,1718185874781,-500.0,0.0002,2]
[329218415,1718185874793,-428.61528224,0.0002,2]
[329218416,1718185874805,-523.47590782,0.0002,2]
[329218417,1718185874817,-500.0,0.0002,2]
[329218418,1718185874829,-500.0,0.0002,2]
[329218419,1718185874841,-500.0,0.0002,2]
[329218420,1718185874853,-500.0,0.0002,2]
[329218421,1718185874872,-831.92,0.0002,2]
[329218422,1718185874884,-421.48768128,0.0002,2]
[329218423,1718185874896,-331.30928387,0.0002,2]
[329218424,1718185874915,-500.0,0.0002,2]
[329218425,1718185874930,-500.0,0.0002,2]
[329218426,1718185874943,-636.62844564,0.0002,2]
[329218427,1718185874956,-679.9121294,0.0002,2]
[329218428,1718185874971,-627.27111612,0.0002,2]
[329218429,1718185874986,-500.0,0.0002,2]
[329218430,1718185875004,-500.0,0.0002,2]
[329218431,1718185875022,-596.38,0.0002,2]
[329218432,1718185875051,-183.11253755,0.0002,2]
[329218433,1718185875068,-500.0,0.0002,2]
[329218434,1718185875119,-500.0,0.0002,2]
[329218435,1718185875135,-500.0,0.0002,2]
[329218436,1718185875148,-500.0,0.0002,2]
[329218437,1718185875164,-500.0,0.0002,2]
[329218438,1718185875177,-150.0,0.0002,2]
[329218439,1718185875188,-500.0,0.0002,2]
[329218440,1718185875201,-636.69,0.0002,2]
[329218441,1718185875212,-500.0,0.0002,2]
[329218442,1718185875224,-500.0,0.0002,2]
[329218443,1718185875237,-550.81,0.0002,2]
[329218444,1718185875250,-377.1843697,0.0002,2]
[329218445,1718185875263,-544.83,0.0002,2]
[329218446,1718185875275,-500.0,0.0002,2]
[329218447,1718185875290,-500.0,0.0002,2]
[329218448,1718185875302,-500.0,0.0002,2]
[329218449,1718185875314,-500.0,0.0002,2]
[329218450,1718185875326,-500.0,0.0002,2]
[329218451,1718185875339,-500.0,0.0002,2]
[329218452,1718185875351,-500.0,0.0002,2]
[329218453,1718185875364,-642.59,0.0002,2]
[329218454,1718185875379,-500.0,0.0002,2]
[329218455,1718185875390,-528.18,0.0002,2]
[329218456,1718185875405,-500.0,0.0002,2]
[329218457,1718185875417,-500.0,0.0002,2]
[329218458,1718185875428,-500.0,0.0002,2]
[329218459,1718185875439,-259.02396414,0.0002,2]
[329218460,1718185875451,-500.0,0.0002,2]
[329218461,1718185875464,-500.0,0.0002,2]
[329218462,1718185875477,-500.0,0.0002,2]
[329218463,1718185875489,-500.0,0.0002,2]
[329218464,1718185875500,-500.0,0.0002,2]
[329218465,1718185875512,-500.0,0.0002,2]
[329218466,1718185875523,-500.0,0.0002,2]
[329218467,1718185875534,-500.0,0.0002,2]
[329218468,1718185875545,-500.0,0.0002,2]
[329218469,1718185875557,-510.57282132,0.0002,2]
[329218470,1718185875568,-1000.0,0.0002,2]
[329218471,1718185875579,-333.73363222,0.0002,2]
[329218472,1718185875591,-500.0,0.0002,2]
[329218473,1718185875603,-500.0,0.0002,2]
[329218474,1718185875614,-500.0,0.0002,2]
[329218475,1718185875626,-500.0,0.0002,2]
[329218476,1718185875637,-500.0,0.0002,2]
[329218477,1718185875648,-500.0,0.0002,2]
[329218478,1718185875663,-500.0,0.0002,2]
[329218479,1718185875674,-500.0,0.0002,2]
[329218480,1718185875685,-500.0,0.0002,2]
[329218481,1718185875698,-500.0,0.0002,2]
[329218482,1718185875710,-482.587036,0.0002,2]
[329218483,1718185875722,-500.0,0.0002,2]
[329218484,1718185875732,-549.88,0.0002,2]
[329218485,1718185875745,-500.0,0.0002,2]
[329218486,1718185875756,-500.0,0.0002,2]
[329218487,1718185875767,-65664.68615936,0.0002,2]
[329218488,1718185875778,-243.99151469,0.0002,2]
[329218489,1718185875789,-500.0,0.0002,2]
[329218490,1718185875801,-500.0,0.0002,2]
[329218491,1718185875812,-357.15737259,0.0002,2]
[329218492,1718185875823,-500.0,0.0002,2]
[329218493,1718185875834,-500.0,0.0002,2]
[329218494,1718185875847,-500.0,0.0002,2]
[329218495,1718185875858,-372.75405991,0.0002,2]
[329218496,1718185875869,-500.0,0.0002,2]
[329218497,1718185875881,-500.0,0.0002,2]
[329218498,1718185875893,-500.0,0.0002,2]
[329218499,1718185875907,-616.7,0.0002,2]
[329218500,1718185875919,-500.0,0.0002,2]
[329218501,1718185875930,-769.59,0.0002,2]
[329218502,1718185875942,-500.0,0.0002,2]
[329218503,1718185875953,-500.0,0.0002,2]
[329218504,1718185875964,-563.56,0.0002,2]
[329218505,1718185875977,-500.0,0.0002,2]
[329218506,1718185875991,-657.51,0.0002,2]
[329218507,1718185876002,-1663.16,0.0002,2]
[329218508,1718185876014,-500.0,0.0002,2]
[329218509,1718185876025,-500.0,0.0002,2]
[329218510,1718185876036,-4313.61,0.0002,2]
[329218511,1718185876048,-844.37,0.0002,2]
[329218512,1718185876059,-500.0,0.0002,2]
[329218513,1718185876072,-1497.28,0.0002,2]
[329218514,1718185876084,-532.58,0.0002,2]
[329218515,1718185876094,-550.43,0.0002,2]
[329218516,1718185876105,-500.0,0.0002,2]
[329218517,1718185876116,-793.78,0.0002,2]
[329218518,1718185876137,-500.0,0.0002,2]
[329218519,1718185876159,-500.0,0.0002,2]
[329218520,1718185876170,-552.52,0.0002,2]
[329218521,1718185876182,-4109.6,0.0002,2]
[329218522,1718185876194,-500.0,0.0002,2]
[329218523,1718185876206,-1055.47,0.0002,2]
[329218524,1718185876217,-897.13,0.0002,2]
[329218525,1718185876230,-543.28,0.0002,2]
[329218526,1718185876241,-1296.61,0.0002,2]
[329218527,1718185876252,-500.0,0.0002,2]
[329218528,1718185876263,-809.93,0.0002,2]
[329218529,1718185876275,-500.0,0.0002,2]
[329218530,1718185876286,-768.11,0.0002,2]
[329218531,1718185876298,-6405.02,0.0002,2]
[329218532,1718185876309,-2036.48,0.0002,2]
[329218533,1718185876321,-500.0,0.0002,2]
[329218534,1718185876332,-2920.36,0.0002,2]
[329218535,1718185876344,-500.0,0.0002,2]
[329218536,1718185876355,-528.32309619,0.0002,2]
[329218537,1718185876366,-2762.9,0.0002,2]
[329218538,1718185876377,-500.0,0.0002,2]
[329218539,1718185876388,-708.79,0.0002,2]
[329218540,1718185876399,-500.0,0.0002,2]
[329218541,1718185876412,-302.85625449,0.0002,2]
[329218542,1718185876424,-1021.06,0.0002,2]
[329218543,1718185876434,-500.0,0.0002,2]
[329218544,1718185876445,-500.0,0.0002,2]
[329218545,1718185876456,-500.0,0.0002,2]
[329218546,1718185876468,-500.0,0.0002,2]
[329218547,1718185876479,-500.0,0.0002,2]
[329218548,1718185876492,-1191.19,0.0002,2]
[329218550,1718185876504,-228.4362497,0.0002,2]
[329218551,1718185876515,-500.0,0.0002,2]
[329218552,1718185876526,-500.0,0.0002,2]
[329218553,1718185876538,-500.0,0.0002,2]
[329218554,1718185876626,-500.0,0.0002,2]
[329218555,1718185876639,-500.0,0.0002,2]
[329218556,1718185876649,-2756.75,0.0002,2]
[329218557,1718185876662,-761.22,0.0002,2]
[329218558,1718185876673,-743.07,0.0002,2]
[329218559,1718185876683,-683.7,0.0002,2]
[329218560,1718185876694,-515.05,0.0002,2]
[329218561,1718185876707,-1876.75,0.0002,2]
[329218562,1718185876718,-1604.18,0.0002,2]
[329218563,1718185876731,-790.24,0.0002,2]
[329218564,1718185876745,-500.0,0.0002,2]
[329218565,1718185876756,-998.7,0.0002,2]
[329218566,1718185876768,-500.0,0.0002,2]
[329218567,1718185876780,-208.90175385,0.0002,2]
[329218568,1718185876792,-500.0,0.0002,2]
[329218569,1718185876804,-975.94,0.0002,2]
[329218570,1718185876816,-542.79749278,0.0002,2]
[329218571,1718185876830,-500.0,0.0002,2]
[329218572,1718185876842,-798.24,0.0002,2]
[329218573,1718185876854,-611.52,0.0002,2]
[329218574,1718185876866,-875.83,0.0002,2]
[329218575,1718185876878,-833.49,0.0002,2]
[329218576,1718185876889,-557.80120133,0.0002,2]
[329218577,1718185876900,-500.0,0.0002,2]
[329218578,1718185876916,-500.0,0.0002,2]
[329218579,1718185876932,-1061.9,0.0002,2]
[329218580,1718185876946,-638.1,0.0002,2]
[329218581,1718185876959,-609.2,0.0002,2]
[329218582,1718185876972,-500.0,0.0002,2]
[329218583,1718185876991,-498.79919999,0.0002,2]
[329218584,1718185877003,-500.0,0.0002,2]
[329218585,1718185877018,-500.0,0.0002,2]
[329218586,1718185877034,-617.77,0.0002,2]
[329218587,1718185877046,-566.19,0.0002,2]
[329218588,1718185877057,-500.0,0.0002,2]
[329218589,1718185877071,-500.0,0.0002,2]
[329218590,1718185877089,-2086.81,0.0002,2]
[329218591,1718185877128,-587.52,0.0002,2]
[329218592,1718185877141,-2541.52,0.0002,2]
[329218593,1718185877156,-840.54,0.0002,2]
[329218594,1718185877172,-500.0,0.0002,2]